Workbook

Sheet summary
A1: base software
A2: HTM60 (proposal) | C2: video 0 | D2: video 1 | E2: video 2 | F2: video PSNR / video bitrate | G2: video PSNR / total bitrate | H2: synth PSNR / total bitrate | I2: enc time | J2: dec time | K2: ren time
B3: Balloons | C3: 0 | D3: 0.001211010006 | E3: 0.003192168141 | F3: 0.0009884205527 | G3: 0.0007571099398 | H3: 0.0002250364199 | I3: 0.9928951767 | J3: 0.997537493 | K3: 0.9892352106
B4: Kendo | C4: 0 | D4: 0.008047793667 | E4: 0.008655595179 | F4: 0.003390042436 | G4: 0.003030795292 | H4: 0.003576763989 | I4: 0.9721192727 | J4: 1.007148391 | K4: 0.9988925544
B5: Newspapercc | C5: 0 | D5: 0.0007435815052 | E5: 0.003398081495 | F5: 0.0009702240606 | G5: 0.001024347321 | H5: 0.0003394091164 | I5: 0.9804976342 | J5: 1.005254515 | K5: 1.002145439
B6: GhostTownFly | C6: 0 | D6: -1.785823792e-05 | E6: 2.615596033e-05 | F6: 4.372284194e-06 | G6: 7.676015726e-06 | H6: 2.561835941e-05 | I6: 0.9894240376 | J6: 0.9812687281 | K6: 0.9736664869
B7: PoznanHall2 | C7: 0 | D7: -0.002459831156 | E7: 0.002136282386 | F7: 6.872152701e-05 | G7: -0.0001232278507 | H7: 0.000355434409 | I7: 0.9843023229 | J7: 0.9753183248 | K7: 0.9861102445
B8: PoznanStreet | C8: 0 | D8: 0.004041832857 | E8: -0.0002501638449 | F8: 0.00067425909 | G8: 0.0005133077727 | H8: 0.0005130894371 | I8: 0.9884755361 | J8: 0.9714705886 | K8: 0.973800426
B9: UndoDancer | C9: 0 | D9: 0.0009435783817 | E9: 0.001037013088 | F9: 0.0002479045269 | G9: 0.0002318412819 | H9: 0.0003145385379 | I9: 0.9802076525 | J9: 0.9660448085 | K9: 0.9750077894
B10: 1024x768 | C10: 0 | D10: 0.003334128393 | E10: 0.005081948272 | F10: 0.001782895683 | G10: 0.001604084185 | H10: 0.001380403175 | I10: 0.9818003173 | J10: 1.003304841 | K10: 0.9967426276
B11: 1920x1088 | C11: 0 | D11: 0.0006269304612 | E11: 0.0007373218973 | F11: 0.000248814357 | G11: 0.0001573993049 | H11: 0.0003021701859 | I11: 0.9855955758 | J11: 0.9735097772 | K11: 0.9771324463
B12: average | C12: 0 | D12: 0.001787158146 | E12: 0.002599304629 | F12: 0.0009062777824 | G12: 0.0007774071104 | H12: 0.0007642700385 | I12: 0.9839672433 | J12: 0.9861691845 | K12: 0.985489119
A14: HTM61 | C14: video 0 | D14: video 1 | E14: video 2 | F14: video PSNR / video bitrate | G14: video PSNR / total bitrate | H14: synth PSNR / total bitrate | I14: enc time | J14: dec time | K14: ren time
B15: Balloons | C15: 0 | D15: 0.003419061883 | E15: 0.004740112072 | F15: 0.001718760764 | G15: 0.001507680459 | H15: 0.001464770229 | I15: 0.9862018941 | K15: 1.002177112
B16: Kendo | C16: 0 | D16: 0.008574290679 | E16: 0.008729030897 | F16: 0.003514552717 | G16: 0.00325785338 | H16: 0.002929055771 | I16: 0.9735112809 | K16: 1.003413038
B17: Newspaper_CC | C17: 0 | D17: 0.0008314451469 | E17: 0.002504892764 | F17: 0.0008507329649 | G17: 0.0006336204155 | H17: 0.0004999021568 | I17: 0.988415346 | K17: 1.005151645
B18: GT_Fly | C18: 0 | D18: 2.184300229e-05 | E18: 0.000146331698 | F18: 4.243486785e-06 | G18: -1.027953343e-05 | H18: -4.588052467e-05 | I18: 0.9998300673 | J18: 0.9977686675 | K18: 0.9981598949
B19: Poznan_Hall2 | C19: 0 | D19: 0.006119318908 | E19: 0.002292561971 | F19: 0.001693179835 | G19: 0.001444306265 | H19: 0.001523551372 | I19: 0.9931967941 | K19: 0.9971532424
B20: Poznan_Street | C20: 0 | D20: 0.0002635706179 | E20: 0.003586194233 | F20: 0.0006038150158 | G20: 0.000527915215 | H20: 0.0006041538802 | I20: 0.9915245306 | K20: 0.9939432683
B21: Undo_Dancer | C21: 0 | D21: 0.0005031433481 | E21: 0.001094019871 | F21: 0.0001724350497 | G21: 0.0001511698578 | H21: 0.0005411067173 | I21: 0.9968426729 | K21: 0.9994654002
B22: 1024x768 | C22: 0 | D22: 0.00427493257 | E22: 0.005324678578 | F22: 0.002028015482 | G22: 0.001799718085 | H22: 0.001631242719 | I22: 0.982709507 | K22: 1.003580598
B23: 1920x1088 | C23: 0 | D23: 0.001726968969 | E23: 0.001779776943 | F23: 0.0006184183469 | G23: 0.0005282779512 | H23: 0.0006557328613 | I23: 0.9953485162 | K23: 0.9971804515
B24: average | C24: 0 | D24: 0.002818953369 | E24: 0.003299020501 | F24: 0.001222531405 | G24: 0.001073180866 | H24: 0.001073808515 | I24: 0.989931798 | K24: 0.9999233715
A26: HTM62 | C26: video 0 | D26: video 1 | E26: video 2 | F26: video PSNR / video bitrate | G26: video PSNR / total bitrate | H26: synth PSNR / total bitrate | I26: enc time | J26: dec time | K26: ren time
B27: Balloons | C27: 0 | D27: 0.003419061883 | E27: 0.004740112072 | F27: 0.001718760764 | G27: 0.002502851512 | H27: 0.003075948157 | I27: 0.9787824062 | J27: 0.9902310715 | K27: 1.001319395
B28: Kendo | C28: 0 | D28: 0.008574290679 | E28: 0.008729030897 | F28: 0.003514552717 | G28: 0.004373523662 | H28: 0.005170745531 | I28: 0.9669722478 | J28: 1.00568191 | K28: 0.9989054831
B29: Newspaper_CC | C29: 0 | D29: 0.0008314451469 | E29: 0.002504892764 | F29: 0.0008507329649 | G29: 0.002362899024 | H29: 0.003317978107 | I29: 0.9870628345 | J29: 0.9963688196 | K29: 0.9925560596
B30: GT_Fly | C30: 0 | D30: 2.184300229e-05 | E30: 0.000146331698 | F30: 4.243486785e-06 | G30: -1.39681292e-05 | H30: 0.0001232545994 | I30: 0.9993615705 | J30: 0.9963236478 | K30: 0.9961975787
B31: Poznan_Hall2 | C31: 0 | D31: 0.006119318908 | E31: 0.002292561971 | F31: 0.001693179835 | G31: 0.001961368296 | H31: 0.002607981256 | I31: 0.9877845439 | J31: 1.008326748 | K31: 0.993652672
B32: Poznan_Street | C32: 0 | D32: 0.0002635706179 | E32: 0.003586194233 | F32: 0.0006038150158 | G32: 0.0003828691233 | H32: 0.0008808161258 | I32: 0.9947360433 | J32: 1.002372917 | K32: 1.003252988
B33: Undo_Dancer | C33: 0 | D33: 0.0005031433481 | E33: 0.001094019871 | F33: 0.0001724350497 | G33: 0.0001511698578 | H33: 0.0005411067173 | I33: 0.9761615046 | J33: 0.99433989 | K33: 0.9993179061
B34: 1024x768 | C34: 0 | D34: 0.00427493257 | E34: 0.005324678578 | F34: 0.002028015482 | G34: 0.003079758066 | H34: 0.003854890598 | I34: 0.9776058295 | J34: 0.9974272669 | K34: 0.997593646
B35: 1920x1088 | C35: 0 | D35: 0.001726968969 | E35: 0.001779776943 | F35: 0.0006184183469 | G35: 0.0006203597869 | H35: 0.001038289675 | I35: 0.9895109156 | J35: 1.000340801 | K35: 0.9981052863
B36: average | C36: 0 | D36: 0.002818953369 | E36: 0.003299020501 | F36: 0.001222531405 | G36: 0.001674387621 | H36: 0.002245404356 | I36: 0.9844087358 | J36: 0.9990921434 | K36: 0.9978860119
A38: r361 | C38: video 0 | D38: video 1 | E38: video 2 | F38: video PSNR / video bitrate | G38: video PSNR / total bitrate | H38: synth PSNR / total bitrate | I38: enc time | J38: dec time | K38: ren time
B39: Balloons | C39: 0 | D39: 0.002086964697 | E39: 0.003251945596 | F39: 0.001306131368 | G39: 0.002381556251 | H39: 0.003292454592 | I39: 0.9756279465 | J39: 1.002952961 | K39: 0.9950042005
B40: Kendo | C40: 0 | D40: 0.005931743297 | E40: 0.006918363051 | F40: 0.002939630192 | G40: 0.003811905415 | H40: 0.003220644196 | I40: 0.9634080755 | J40: 1.00120581 | K40: 1.000015115
B41: Newspaper_CC | C41: 0 | D41: 0.002606535961 | E41: 0.001980145182 | F41: 0.00103621663 | G41: 0.002550913158 | H41: 0.002711112588 | I41: 0.9799368719 | J41: 0.9943720975 | K41: 1.000757058
B42: GT_Fly | C42: 0 | D42: 2.391412552e-05 | E42: -5.502683199e-05 | F42: -1.081089777e-05 | G42: -1.53459151e-05 | H42: 0.0002146304546 | I42: 0.9959207096 | J42: 1.004537693 | K42: 1.003052529
B43: Poznan_Hall2 | C43: 0 | D43: 0.005678860373 | E43: 0.003430619738 | F43: 0.002270692268 | G43: 0.002467207986 | H43: 0.002307926038 | I43: 0.9851835734 | J43: 1.003769686 | K43: 1.009170085
B44: Poznan_Street | C44: 0 | D44: 0.002473681372 | E44: 0.003821609874 | F44: 0.0009800411158 | G44: 0.0006440539573 | H44: 0.001226751981 | I44: 0.9890753957 | J44: 1.006884579 | K44: 0.9978662913
B45: Undo_Dancer | C45: 0 | D45: -0.0002678247451 | E45: 0.001200368606 | F45: 0.0001204021454 | G45: 9.649255981e-05 | H45: -0.0009258853146 | I45: 0.9940091552 | J45: 0.968078242 | K45: 0.9971022416
B46: 1024x768 | C46: 0 | D46: 0.003541747985 | E46: 0.004050151276 | F46: 0.001760659397 | G46: 0.002914791608 | H46: 0.003074737125 | I46: 0.9729909646 | J46: 0.9995102897 | K46: 0.9985921245
B47: 1920x1088 | C47: 0 | D47: 0.001977157781 | E47: 0.002099392846 | F47: 0.0008400811579 | G47: 0.0007981021471 | H47: 0.0007058557898 | I47: 0.9910472085 | J47: 0.9958175501 | K47: 1.001797787
B48: average | C48: 0 | D48: 0.00264769644 | E48: 0.002935432174 | F48: 0.001234614689 | G48: 0.001705254773 | H48: 0.001721090648 | I48: 0.9833088183 | J48: 0.9974001528 | K48: 1.000423932

Sheet summary (auto)
B2: 3 view test case
C4: video 0 | D4: video 1 | E4: video 2 | F4: video PSNR / video bitrate | G4: video PSNR / total bitrate | H4: synth PSNR / total bitrate | I4: enc time | J4: dec time | K4: ren time
B5: ='experimental data'!B3 -> Balloons | C5: ='experimental data'!U3 -> 0 | D5: ='experimental data'!U7 -> 0.002086964697 | E5: ='experimental data'!U11 -> 0.003251945596 | F5: ='experimental data'!U382 -> 0.001306131368 | G5: =bdrate('experimental data'!E398:E401,'experimental data'!F382:F385,'experimental data'!M398:M401,'experimental data'!N382:N385) -> 0.002381556251 | H5: ='experimental data'!U390 -> 0.003292454592 | I5: ='experimental data'!AB51 -> 0.9756279465 | J5: ='experimental data'!AC51 -> 1.002952961 | K5: ='experimental data'!AD51 -> 0.9950042005
B6: ='experimental data'!B55 -> Kendo | C6: ='experimental data'!U55 -> 0 | D6: ='experimental data'!U59 -> 0.005931743297 | E6: ='experimental data'!U63 -> 0.006918363051 | F6: ='experimental data'!U406 -> 0.002939630192 | G6: =bdrate('experimental data'!E422:E425,'experimental data'!F406:F409,'experimental data'!M422:M425,'experimental data'!N406:N409) -> 0.003811905415 | H6: ='experimental data'!U414 -> 0.003220644196 | I6: ='experimental data'!AB103 -> 0.9634080755 | J6: ='experimental data'!AC103 -> 1.00120581 | K6: ='experimental data'!AD103 -> 1.000015115
B7: ='experimental data'!B107 -> Newspaper_CC | C7: ='experimental data'!U107 -> 0 | D7: ='experimental data'!U111 -> 0.002606535961 | E7: ='experimental data'!U115 -> 0.001980145182 | F7: ='experimental data'!U430 -> 0.00103621663 | G7: =bdrate('experimental data'!E446:E449,'experimental data'!F430:F433,'experimental data'!M446:M449,'experimental data'!N430:N433) -> 0.002550913158 | H7: ='experimental data'!U438 -> 0.002711112588 | I7: ='experimental data'!AB155 -> 0.9799368719 | J7: ='experimental data'!AC155 -> 0.9943720975 | K7: ='experimental data'!AD155 -> 1.000757058
B8: ='experimental data'!B159 -> GT_Fly | C8: ='experimental data'!U159 -> 0 | D8: ='experimental data'!U163 -> 2.391412552e-05 | E8: ='experimental data'!U167 -> -5.502683199e-05 | F8: ='experimental data'!U454 -> -1.081089777e-05 | G8: =bdrate('experimental data'!E470:E473,'experimental data'!F454:F457,'experimental data'!M470:M473,'experimental data'!N454:N457) -> -1.53459151e-05 | H8: ='experimental data'!U462 -> 0.0002146304546 | I8: ='experimental data'!AB207 -> 0.9959207096 | J8: ='experimental data'!AC207 -> 1.004537693 | K8: ='experimental data'!AD207 -> 1.003052529
B9: ='experimental data'!B211 -> Poznan_Hall2 | C9: ='experimental data'!U211 -> 0 | D9: ='experimental data'!U215 -> 0.005678860373 | E9: ='experimental data'!U219 -> 0.003430619738 | F9: ='experimental data'!U478 -> 0.002270692268 | G9: =bdrate('experimental data'!E494:E497,'experimental data'!F478:F481,'experimental data'!M494:M497,'experimental data'!N478:N481) -> 0.002467207986 | H9: ='experimental data'!U486 -> 0.002307926038 | I9: ='experimental data'!AB259 -> 0.9851835734 | J9: ='experimental data'!AC259 -> 1.003769686 | K9: ='experimental data'!AD259 -> 1.009170085
B10: ='experimental data'!B263 -> Poznan_Street | C10: ='experimental data'!U263 -> 0 | D10: ='experimental data'!U267 -> 0.002473681372 | E10: ='experimental data'!U271 -> 0.003821609874 | F10: ='experimental data'!U502 -> 0.0009800411158 | G10: =bdrate('experimental data'!E518:E521,'experimental data'!F502:F505,'experimental data'!M518:M521,'experimental data'!N502:N505) -> 0.0006440539573 | H10: ='experimental data'!U510 -> 0.001226751981 | I10: ='experimental data'!AB311 -> 0.9890753957 | J10: ='experimental data'!AC311 -> 1.006884579 | K10: ='experimental data'!AD311 -> 0.9978662913
B11: ='experimental data'!B315 -> Undo_Dancer | C11: ='experimental data'!U315 -> 0 | D11: ='experimental data'!U319 -> -0.0002678247451 | E11: ='experimental data'!U323 -> 0.001200368606 | F11: ='experimental data'!U526 -> 0.0001204021454 | G11: =bdrate('experimental data'!E542:E545,'experimental data'!F526:F529,'experimental data'!M542:M545,'experimental data'!N526:N529) -> 9.649255981e-05 | H11: ='experimental data'!U534 -> -0.0009258853146 | I11: ='experimental data'!AB363 -> 0.9940091552 | J11: ='experimental data'!AC363 -> 0.968078242 | K11: ='experimental data'!AD363 -> 0.9971022416
B12: 1024x768 | C12: =AVERAGE(C5:C7) -> 0 | D12: 0.003541747985 | E12: 0.004050151276 | F12: 0.001760659397 | G12: 0.002914791608 | H12: 0.003074737125 | I12: 0.9729909646 | J12: 0.9995102897 | K12: 0.9985921245
B13: 1920x1088 | C13: =AVERAGE(C8:C11) -> 0 | D13: 0.001977157781 | E13: 0.002099392846 | F13: 0.0008400811579 | G13: 0.0007981021471 | H13: 0.0007058557898 | I13: 0.9910472085 | J13: 0.9958175501 | K13: 1.001797787
B14: average | C14: =AVERAGE(C5:C11) -> 0 | D14: 0.00264769644 | E14: 0.002935432174 | F14: 0.001234614689 | G14: 0.001705254773 | H14: 0.001721090648 | I14: 0.9833088183 | J14: 0.9974001528 | K14: 1.000423932
B18: 2 view test case (extracted from 3 view data)
C20: video 0 | D20: video 1 | E20: video PSNR / video bitrate | F20: video PSNR / total bitrate | G20: synth PSNR / total bitrate
B21: ='experimental data'!B3 -> Balloons | C21: ='experimental data'!U3 -> 0 | D21: ='experimental data'!U7 -> 0.002086964697 | E21: ='experimental data'!U378 -> 0.0007870148403 | F21: =bdrate('experimental data'!E394:E397,'experimental data'!F378:F381,'experimental data'!M394:M397,'experimental data'!N378:N381) -> 0.001407587903 | G21: ='experimental data'!U386 -> 0.002288879763
B22: ='experimental data'!B55 -> Kendo | C22: ='experimental data'!U55 -> 0 | D22: ='experimental data'!U59 -> 0.005931743297 | E22: ='experimental data'!U402 -> 0.001835541266 | F22: =bdrate('experimental data'!E418:E421,'experimental data'!F402:F405,'experimental data'!M418:M421,'experimental data'!N402:N405) -> 0.002512486639 | G22: ='experimental data'!U410 -> 0.002168328784
B23: ='experimental data'!B107 -> Newspaper_CC | C23: ='experimental data'!U107 -> 0 | D23: ='experimental data'!U111 -> 0.002606535961 | E23: ='experimental data'!U426 -> 0.0007674144351 | F23: =bdrate('experimental data'!E442:E445,'experimental data'!F426:F429,'experimental data'!M442:M445,'experimental data'!N426:N429) -> 0.001774441051 | G23: ='experimental data'!U434 -> 0.003084179987
B24: ='experimental data'!B159 -> GT_Fly | C24: ='experimental data'!U159 -> 0 | D24: ='experimental data'!U163 -> 2.391412552e-05 | E24: ='experimental data'!U450 -> 4.521950705e-06 | F24: =bdrate('experimental data'!E466:E469,'experimental data'!F450:F453,'experimental data'!M466:M469,'experimental data'!N450:N453) -> -3.900206011e-05 | G24: ='experimental data'!U458 -> 0.0001431987416
B25: ='experimental data'!B211 -> Poznan_Hall2 | C25: ='experimental data'!U211 -> 0 | D25: ='experimental data'!U215 -> 0.005678860373 | E25: ='experimental data'!U474 -> 0.001838506846 | F25: =bdrate('experimental data'!E490:E493,'experimental data'!F474:F477,'experimental data'!M490:M493,'experimental data'!N474:N477) -> 0.001931679485 | G25: ='experimental data'!U482 -> 0.001930809416
B26: ='experimental data'!B263 -> Poznan_Street | C26: ='experimental data'!U263 -> 0 | D26: ='experimental data'!U267 -> 0.002473681372 | E26: ='experimental data'!U498 -> 0.00042593622 | F26: =bdrate('experimental data'!E514:E517,'experimental data'!F498:F501,'experimental data'!M514:M517,'experimental data'!N498:N501) -> 0.000237623882 | G26: ='experimental data'!U506 -> 0.0006941615043
B27: ='experimental data'!B315 -> Undo_Dancer | C27: ='experimental data'!U315 -> 0 | D27: ='experimental data'!U319 -> -0.0002678247451 | E27: ='experimental data'!U522 -> 3.951400553e-05 | F27: =bdrate('experimental data'!E538:E541,'experimental data'!F522:F525,'experimental data'!M538:M541,'experimental data'!N522:N525) -> -1.80083638e-05 | G27: ='experimental data'!U530 -> -0.001626410889
B28: 1024x768 | C28: =AVERAGE(C21:C23) -> 0 | D28: =AVERAGE(D21:D23) -> 0.003541747985 | E28: =AVERAGE(E21:E23) -> 0.001129990181 | F28: =AVERAGE(F21:F23) -> 0.001898171865 | G28: =AVERAGE(G21:G23) -> 0.002513796178
B29: 1920x1088 | C29: =AVERAGE(C24:C27) -> 0 | D29: =AVERAGE(D24:D27) -> 0.001977157781 | E29: =AVERAGE(E24:E27) -> 0.0005771197555 | F29: =AVERAGE(F24:F27) -> 0.0005280732358 | G29: =AVERAGE(G24:G27) -> 0.0002854396933
B30: average | C30: =AVERAGE(C21:C27) -> 0 | D30: =AVERAGE(D21:D27) -> 0.00264769644 | E30: =AVERAGE(E21:E27) -> 0.0008140642234 | F30: =AVERAGE(F21:F27) -> 0.001115258362 | G30: =AVERAGE(G21:G27) -> 0.001240449615

Sheet experimental data
E1: Reference | M1: Tested | U1: BD-rate (piecewise cubic) | X1: BD-rate (cubic) | AB1: Time ratio
A2: Class | B2: Sequence | C2: component | D2: QPISlice(V0) | E2: kbps | F2: Y-PSNR | G2: U-PSNR | H2: V-PSNR | I2: Enc T [s] | J2: Dec T [s] | K2: Ren T [s] | M2: kbps | N2: Y-PSNR | O2: U-PSNR | P2: V-PSNR | Q2: Enc T [s] | R2: Dec T [s] | S2: Ren T [s] | U2: Y | V2: U | W2: V | X2: Y | Y2: U | Z2: V | AB2: Enc | AC2: Dec | AD2: Ren
A3: 1024x768 | B3: Balloons | C3: video 0 | D3: 25 | E3: 876.5944 | F3: 43.101 | G3: 43.3809 | H3: 43.9393 | M3: 876.5944 | N3: 43.101 | O3: 43.3809 | P3: 43.9393 | U3: =bdrate($E3:$E6,F3:F6,$M3:$M6,N3:N6) -> 0 | V3: =bdrate($E3:$E6,G3:G6,$M3:$M6,O3:O6) -> 0 | W3: =bdrate($E3:$E6,H3:H6,$M3:$M6,P3:P6) -> 0 | X3: =bdrateOld($E3:$E6,F3:F6,$M3:$M6,N3:N6) -> 0 | Y3: =bdrateOld($E3:$E6,G3:G6,$M3:$M6,O3:O6) -> 0 | Z3: =bdrateOld($E3:$E6,H3:H6,$M3:$M6,P3:P6) -> 0
D4: 30 | E4: 481.956 | F4: 41.0724 | G4: 42.1373 | H4: 42.3239 | M4: 481.956 | N4: 41.0724 | O4: 42.1373 | P4: 42.3239
D5: 35 | E5: 278.252 | F5: 38.5097 | G5: 40.6871 | H5: 40.5605 | M5: 278.252 | N5: 38.5097 | O5: 40.6871 | P5: 40.5605
D6: 40 | E6: 168.8832 | F6: 35.6798 | G6: 39.6438 | H6: 39.3241 | M6: 168.8832 | N6: 35.6798 | O6: 39.6438 | P6: 39.3241
C7: video 1 | D7: 25 | E7: 299.9904 | F7: 42.2966 | G7: 43.1129 | H7: 43.1318 | M7: 301.38 | N7: 42.2926 | O7: 43.1174 | P7: 43.1366 | U7: =bdrate($E7:$E10,F7:F10,$M7:$M10,N7:N10) -> 0.002086964697 | V7: =bdrate($E7:$E10,G7:G10,$M7:$M10,O7:O10) -> 0.001153671497 | W7: =bdrate($E7:$E10,H7:H10,$M7:$M10,P7:P10) -> 0.003468678841 | X7: =bdrateOld($E7:$E10,F7:F10,$M7:$M10,N7:N10) -> 0.002069972348 | Y7: =bdrateOld($E7:$E10,G7:G10,$M7:$M10,O7:O10) -> 0.00112126365 | Z7: =bdrateOld($E7:$E10,H7:H10,$M7:$M10,P7:P10) -> 0.003452825527
D8: 30 | E8: 145.36 | F8: 40.0203 | G8: 41.9371 | H8: 41.6315 | M8: 145.8032 | N8: 40.0154 | O8: 41.9464 | P8: 41.6275
D9: 35 | E9: 78.7256 | F9: 37.4402 | G9: 40.7214 | H9: 40.1425 | M9: 78.676 | N9: 37.434 | O9: 40.7125 | P9: 40.135
D10: 40 | E10: 44.5408 | F10: 34.6971 | G10: 39.7351 | H10: 39.0431 | M10: 44.3608 | N10: 34.6917 | O10: 39.7236 | P10: 39.0329
C11: video 2 | D11: 25 | E11: 328.904 | F11: 41.9664 | G11: 42.5648 | H11: 42.8602 | M11: 330.2472 | N11: 41.9641 | O11: 42.5634 | P11: 42.8637 | U11: =bdrate($E11:$E14,F11:F14,$M11:$M14,N11:N14) -> 0.003251945596 | V11: =bdrate($E11:$E14,G11:G14,$M11:$M14,O11:O14) -> 0.00539666996 | W11: =bdrate($E11:$E14,H11:H14,$M11:$M14,P11:P14) -> 0.00284639158 | X11: =bdrateOld($E11:$E14,F11:F14,$M11:$M14,N11:N14) -> 0.003294631974 | Y11: =bdrateOld($E11:$E14,G11:G14,$M11:$M14,O11:O14) -> 0.005143118491 | Z11: =bdrateOld($E11:$E14,H11:H14,$M11:$M14,P11:P14) -> 0.002838131814
D12: 30 | E12: 158.3792 | F12: 39.7681 | G12: 41.3808 | H12: 41.406 | M12: 158.8256 | N12: 39.7663 | O12: 41.373 | P12: 41.409
D13: 35 | E13: 85.4936 | F13: 37.2309 | G13: 40.2014 | H13: 39.9617 | M13: 85.7048 | N13: 37.2259 | O13: 40.1938 | P13: 39.9581
D14: 40 | E14: 49.4232 | F14: 34.5145 | G14: 39.2923 | H14: 38.8781 | M14: 49.4008 | N14: 34.5079 | O14: 39.3017 | P14: 38.8673
C15: depth 0 | D15: 34 | E15: 110.2312 | F15: 37.3978 | M15: 110.2312 | N15: 37.3978 | U15: =bdrate($E15:$E18,F15:F18,$M15:$M18,N15:N18) -> 0 | X15: =bdrateOld($E15:$E18,F15:F18,$M15:$M18,N15:N18) -> 0
D16: 39 | E16: 40.4224 | F16: 34.6699 | M16: 40.4224 | N16: 34.6699
D17: 42 | E17: 19.1488 | F17: 32.8199 | M17: 19.1488 | N17: 32.8199
D18: 45 | E18: 10.2424 | F18: 30.3999 | M18: 10.2424 | N18: 30.3999
C19: depth 1 | D19: 34 | E19: 86.444 | F19: 34.9593 | M19: 86.984 | N19: 35.0296 | U19: =bdrate($E19:$E22,F19:F22,$M19:$M22,N19:N22) -> 0.0382410938 | X19: =bdrateOld($E19:$E22,F19:F22,$M19:$M22,N19:N22) -> 0.03646507986
D20: 39 | E20: 30.6464 | F20: 32.9618 | M20: 31.3408 | N20: 32.8358
D21: 42 | E21: 14.1024 | F21: 30.743 | M21: 14.3496 | N21: 30.6828
D22: 45 | E22: 7.1416 | F22: 28.2301 | M22: 7.1136 | N22: 28.1968
C23: depth 2 | D23: 34 | E23: 94.776 | F23: 34.3454 | M23: 95.8432 | N23: 34.4058 | U23: =bdrate($E23:$E26,F23:F26,$M23:$M26,N23:N26) -> 0.02312421303 | X23: =bdrateOld($E23:$E26,F23:F26,$M23:$M26,N23:N26) -> 0.02281868913
D24: 39 | E24: 32.5928 | F24: 31.9445 | M24: 33.412 | N24: 31.9482
D25: 42 | E25: 15.3624 | F25: 29.6987 | M25: 15.6032 | N25: 29.6495
D26: 45 | E26: 7.6904 | F26: 26.8759 | M26: 7.8624 | N26: 26.8015
C27: syn 0.25 | D27: 25 | F27: 42.3197 | G27: 45.319 | H27: 45.0922 | N27: 42.3101 | O27: 45.3236 | P27: 45.0923
D28: 30 | F28: 40.174 | G28: 43.7628 | H28: 43.256 | N28: 40.1681 | O28: 43.7681 | P28: 43.2487
D29: 35 | F29: 37.7039 | G29: 42.1689 | H29: 41.404 | N29: 37.6987 | O29: 42.1682 | P29: 41.3931
D30: 40 | F30: 35.0078 | G30: 40.9346 | H30: 40.0633 | N30: 34.996 | O30: 40.925 | P30: 40.0549
C31: syn 0.50 | D31: 25 | F31: 42.8874 | G31: 45.931 | H31: 45.7606 | N31: 42.8873 | O31: 45.9327 | P31: 45.7609
D32: 30 | F32: 40.6567 | G32: 44.2566 | H32: 43.7708 | N32: 40.6559 | O32: 44.2647 | P32: 43.7651
D33: 35 | F33: 38.1013 | G33: 42.4538 | H33: 41.7352 | N33: 38.0913 | O33: 42.451 | P33: 41.7292
D34: 40 | F34: 35.3298 | G34: 41.1176 | H34: 40.2845 | N34: 35.317 | O34: 41.1128 | P34: 40.2813
C35: syn 0.75 | D35: 25 | F35: 43.0264 | G35: 45.5281 | H35: 45.6626 | N35: 43.0202 | O35: 45.5268 | P35: 45.6634
D36: 30 | F36: 40.9218 | G36: 43.9533 | H36: 43.7331 | N36: 40.9084 | O36: 43.9539 | P36: 43.7284
D37: 35 | F37: 38.3922 | G37: 42.1821 | H37: 41.6848 | N37: 38.3915 | O37: 42.1822 | P37: 41.6829
D38: 40 | F38: 35.6015 | G38: 40.895 | H38: 40.2501 | N38: 35.5974 | O38: 40.8932 | P38: 40.2452
C39: syn 1.25 | D39: 25 | F39: 42.9287 | G39: 45.5654 | H39: 45.6569 | N39: 42.9135 | O39: 45.5678 | P39: 45.6563
D40: 30 | F40: 40.8117 | G40: 43.9938 | H40: 43.7292 | N40: 40.8119 | O40: 43.9918 | P40: 43.7293
D41: 35 | F41: 38.2899 | G41: 42.231 | H41: 41.6783 | N41: 38.2802 | O41: 42.2278 | P41: 41.6764
D42: 40 | F42: 35.4682 | G42: 40.9381 | H42: 40.2254 | N42: 35.4708 | O42: 40.9446 | P42: 40.2223
C43: syn 1.5 | D43: 25 | F43: 42.7354 | G43: 45.8814 | H43: 45.6455 | N43: 42.7338 | O43: 45.8897 | P43: 45.6459
D44: 30 | F44: 40.5214 | G44: 44.2328 | H44: 43.6399 | N44: 40.5065 | O44: 44.2281 | P44: 43.6453
D45: 35 | F45: 37.993 | G45: 42.4313 | H45: 41.6323 | N45: 37.9868 | O45: 42.4246 | P45: 41.6231
D46: 40 | F46: 35.1889 | G46: 41.0853 | H46: 40.1597 | N46: 35.1887 | O46: 41.094 | P46: 40.1545
C47: syn 1.75 | D47: 25 | F47: 42.1407 | G47: 45.1546 | H47: 44.8856 | N47: 42.1316 | O47: 45.1557 | P47: 44.8747
D48: 30 | F48: 40.0106 | G48: 43.6202 | H48: 43.035 | N48: 40.0002 | O48: 43.6131 | P48: 43.042
D49: 35 | F49: 37.5736 | G49: 42.0241 | H49: 41.2211 | N49: 37.5682 | O49: 42.0156 | P49: 41.2113
D50: 40 | F50: 34.8611 | G50: 40.7961 | H50: 39.8647 | N50: 34.8617 | O50: 40.8093 | P50: 39.8565
C51: overall | D51: 25 | E51: 1804.9128 | I51: 30607.77 | J51: 47.57 | K51: 311.33 | M51: 1809.2528 | Q51: 29772.67 | R51: 47.39 | S51: 308.83 | AB51: =GEOMEAN(Q51:Q54)/GEOMEAN(I51:I54) -> 0.9756279465 | AC51: =GEOMEAN(R51:R54)/GEOMEAN(J51:J54) -> 1.002952961 | AD51: =GEOMEAN(S51:S54)/GEOMEAN(K51:K54) -> 0.9950042005
D52: 30 | E52: 897.3296 | I52: 26457.09 | J52: 43.2 | K52: 311.77 | M52: 899.7328 | Q52: 25732.34 | R52: 43.4 | S52: 309.34
D53: 35 | E53: 499.0576 | I53: 24538.29 | J53: 40.68 | K53: 308.85 | M53: 499.7072 | Q53: 24089.18 | R53: 40.19 | S53: 309.55
D54: 40 | E54: 295.8944 | I54: 23181.61 | J54: 38.11 | K54: 311.45 | M54: 295.836 | Q54: 22614.11 | R54: 39 | S54: 309.46
A55: 1024x768 | B55: Kendo | C55: video 0 | D55: 25 | E55: 844.7176 | F55: 43.6144 | G55: 44.9481 | H55: 44.937 | M55: 844.7176 | N55: 43.6144 | O55: 44.9481 | P55: 44.937 | U55: =bdrate($E55:$E58,F55:F58,$M55:$M58,N55:N58) -> 0 | V55: =bdrate($E55:$E58,G55:G58,$M55:$M58,O55:O58) -> 0 | W55: =bdrate($E55:$E58,H55:H58,$M55:$M58,P55:P58) -> 0 | X55: =bdrateOld($E55:$E58,F55:F58,$M55:$M58,N55:N58) -> 0 | Y55: =bdrateOld($E55:$E58,G55:G58,$M55:$M58,O55:O58) -> 0 | Z55: =bdrateOld($E55:$E58,H55:H58,$M55:$M58,P55:P58) -> 0
D56: 30 | E56: 451.7192 | F56: 41.463 | G56: 44.1228 | H56: 43.4683 | M56: 451.7192 | N56: 41.463 | O56: 44.1228 | P56: 43.4683
D57: 35 | E57: 257.2968 | F57: 38.9885 | G57: 43.0827 | H57: 41.8071 | M57: 257.2968 | N57: 38.9885 | O57: 43.0827 | P57: 41.8071
D58: 40 | E58: 155.5992 | F58: 36.3791 | G58: 42.3016 | H58: 40.5416 | M58: 155.5992 | N58: 36.3791 | O58: 42.3016 | P58: 40.5416
C59: video 1 | D59: 25 | E59: 299.4408 | F59: 42.7566 | G59: 44.8034 | H59: 44.2326 | M59: 301.4888 | N59: 42.7529 | O59: 44.807 | P59: 44.2251 | U59: =bdrate($E59:$E62,F59:F62,$M59:$M62,N59:N62) -> 0.005931743297 | V59: =bdrate($E59:$E62,G59:G62,$M59:$M62,O59:O62) -> 0.004156623669 | W59: =bdrate($E59:$E62,H59:H62,$M59:$M62,P59:P62) -> 0.007117197754 | X59: =bdrateOld($E59:$E62,F59:F62,$M59:$M62,N59:N62) -> 0.005896173599 | Y59: =bdrateOld($E59:$E62,G59:G62,$M59:$M62,O59:O62) -> 0.003666318694 | Z59: =bdrateOld($E59:$E62,H59:H62,$M59:$M62,P59:P62) -> 0.007070807239
D60: 30 | E60: 139.568 | F60: 40.4493 | G60: 43.9479 | H60: 42.8546 | M60: 140.5096 | N60: 40.4448 | O60: 43.9548 | P60: 42.8541
D61: 35 | E61: 75.9112 | F61: 38.0425 | G61: 43.0554 | H61: 41.4423 | M61: 76.0024 | N61: 38.031 | O61: 43.0394 | P61: 41.43
D62: 40 | E62: 43.9224 | F62: 35.5257 | G62: 42.2897 | H62: 40.3119 | M62: 44.012 | N62: 35.5157 | O62: 42.3091 | P62: 40.3094
C63: video 2 | D63: 25 | E63: 319.1448 | F63: 42.3837 | G63: 44.0081 | H63: 43.9687 | M63: 321.1752 | N63: 42.3754 | O63: 44.0064 | P63: 43.9602 | U63: =bdrate($E63:$E66,F63:F66,$M63:$M66,N63:N66) -> 0.006918363051 | V63: =bdrate($E63:$E66,G63:G66,$M63:$M66,O63:O66) -> 0.01209816385 | W63: =bdrate($E63:$E66,H63:H66,$M63:$M66,P63:P66) -> 0.009777427324 | X63: =bdrateOld($E63:$E66,F63:F66,$M63:$M66,N63:N66) -> 0.006943462437 | Y63: =bdrateOld($E63:$E66,G63:G66,$M63:$M66,O63:O66) -> 0.01183385152 | Z63: =bdrateOld($E63:$E66,H63:H66,$M63:$M66,P63:P66) -> 0.009657956224
D64: 30 | E64: 148.324 | F64: 40.1847 | G64: 43.1258 | H64: 42.6365 | M64: 149.3608 | N64: 40.1845 | O64: 43.1193 | P64: 42.6261
D65: 35 | E65: 79.8448 | F65: 37.8584 | G65: 42.3487 | H65: 41.3299 | M65: 80.1384 | N65: 37.8469 | O65: 42.3347 | P65: 41.3189
D66: 40 | E66: 45.5024 | F66: 35.3747 | G66: 41.7046 | H66: 40.2373 | M66: 45.6176 | N66: 35.3608 | O66: 41.7007 | P66: 40.2432
C67: depth 0 | D67: 34 | E67: 131.86 | F67: 35.5708 | M67: 131.86 | N67: 35.5708 | U67: =bdrate($E67:$E70,F67:F70,$M67:$M70,N67:N70) -> 0 | X67: =bdrateOld($E67:$E70,F67:F70,$M67:$M70,N67:N70) -> 0
D68: 39 | E68: 50.1264 | F68: 32.8708 | M68: 50.1264 | N68: 32.8708
D69: 42 | E69: 23.7184 | F69: 30.4462 | M69: 23.7184 | N69: 30.4462
D70: 45 | E70: 12.1192 | F70: 28.2716 | M70: 12.1192 | N70: 28.2716
C71: depth 1 | D71: 34 | E71: 102.7464 | F71: 31.6028 | M71: 104.4888 | N71: 31.6217 | U71: =bdrate($E71:$E74,F71:F74,$M71:$M74,N71:N74) -> 0.01487725274 | X71: =bdrateOld($E71:$E74,F71:F74,$M71:$M74,N71:N74) -> 0.01424453843
D72: 39 | E72: 37.4496 | F72: 29.8878 | M72: 37.9304 | N72: 29.8704
D73: 42 | E73: 17.1928 | F73: 27.958 | M73: 17.4424 | N73: 27.9907
D74: 45 | E74: 8.8424 | F74: 25.8071 | M74: 9.0128 | N74: 25.7119
C75: depth 2 | D75: 34 | E75: 115.2928 | F75: 29.0489 | M75: 116.1832 | N75: 29.0252 | U75: =bdrate($E75:$E78,F75:F78,$M75:$M78,N75:N78) -> 0.01402381165 | X75: =bdrateOld($E75:$E78,F75:F78,$M75:$M78,N75:N78) -> 0.01614257121
D76: 39 | E76: 43.016 | F76: 27.8252 | M76: 43.4752 | N76: 27.8417
D77: 42 | E77: 19.5576 | F77: 26.3285 | M77: 19.8576 | N77: 26.3284
D78: 45 | E78: 9.9496 | F78: 24.441 | M78: 10.0296 | N78: 24.3697
C79: syn 0.25 | D79: 25 | F79: 42.7482 | G79: 47.0692 | H79: 45.8531 | N79: 42.7516 | O79: 47.0887 | P79: 45.8411
D80: 30 | F80: 40.5447 | G80: 45.9406 | H80: 44.2401 | N80: 40.5434 | O80: 45.9585 | P80: 44.2486
D81: 35 | F81: 38.2225 | G81: 44.8119 | H81: 42.6005 | N81: 38.2185 | O81: 44.7802 | P81: 42.596
D82: 40 | F82: 35.7671 | G82: 43.8484 | H82: 41.2682 | N82: 35.7517 | O82: 43.8472 | P82: 41.2765
C83: syn 0.50 | D83: 25 | F83: 43.3967 | G83: 47.6192 | H83: 46.6407 | N83: 43.3996 | O83: 47.6122 | P83: 46.6307
D84: 30 | F84: 41.0539 | G84: 46.4143 | H84: 44.9042 | N84: 41.0503 | O84: 46.4318 | P84: 44.9027
D85: 35 | F85: 38.5895 | G85: 45.0838 | H85: 43.0606 | N85: 38.5853 | O85: 45.064 | P85: 43.0604
D86: 40 | F86: 36.0179 | G86: 44.0677 | H86: 41.6167 | N86: 36.0064 | O86: 44.0578 | P86: 41.6165
C87: syn 0.75 | D87: 25 | F87: 43.5987 | G87: 47.0213 | H87: 46.5413 | N87: 43.6016 | O87: 47.0188 | P87: 46.5346
D88: 30 | F88: 41.3437 | G88: 45.9695 | H88: 44.8644 | N88: 41.3434 | O88: 45.9717 | P88: 44.8638
D89: 35 | F89: 38.8771 | G89: 44.6801 | H89: 43.01 | N89: 38.8759 | O89: 44.6716 | P89: 43.0091
D90: 40 | F90: 36.2611 | G90: 43.7308 | H90: 41.5659 | N90: 36.2571 | O90: 43.7339 | P90: 41.5632
C91: syn 1.25 | D91: 25 | F91: 43.4096 | G91: 47.049 | H91: 46.5913 | N91: 43.4137 | O91: 47.0476 | P91: 46.59
D92: 30 | F92: 41.1749 | G92: 46.0213 | H92: 44.8981 | N92: 41.1756 | O92: 46.0125 | P92: 44.8896
D93: 35 | F93: 38.7113 | G93: 44.7417 | H93: 43.0207 | N93: 38.7116 | O93: 44.737 | P93: 43.0174
D94: 40 | F94: 36.1269 | G94: 43.8019 | H94: 41.5581 | N94: 36.123 | O94: 43.7985 | P94: 41.5604
C95: syn 1.5 | D95: 25 | F95: 43.1148 | G95: 47.3347 | H95: 46.6424 | N95: 43.1151 | O95: 47.3354 | P95: 46.6323
D96: 30 | F96: 40.8054 | G96: 46.2389 | H96: 44.8824 | N96: 40.8137 | O96: 46.2277 | P96: 44.8644
D97: 35 | F97: 38.3826 | G97: 45.0085 | H97: 43.0688 | N97: 38.3738 | O97: 45.0101 | P97: 43.0548
D98: 40 | F98: 35.8385 | G98: 44.0503 | H98: 41.5888 | N98: 35.824 | O98: 44.0429 | P98: 41.5909
C99: syn 1.75 | D99: 25 | F99: 42.4377 | G99: 46.3838 | H99: 45.7754 | N99: 42.4238 | O99: 46.3847 | P99: 45.7749
D100: 30 | F100: 40.2759 | G100: 45.3075 | H100: 44.1629 | N100: 40.28 | O100: 45.2959 | P100: 44.1425
D101: 35 | F101: 37.9927 | G101: 44.2822 | H101: 42.5731 | N101: 37.9787 | O101: 44.2641 | P101: 42.558
D102: 40 | F102: 35.5376 | G102: 43.4588 | H102: 41.2288 | N102: 35.5191 | O102: 43.4388 | P102: 41.2301
C103: overall | D103: 25 | E103: 1821.1752 | I103: 35589 | J103: 45.12 | K103: 313.11 | M103: 1827.8864 | Q103: 34288.51 | R103: 45.57 | S103: 311.98 | AB103: =GEOMEAN(Q103:Q106)/GEOMEAN(I103:I106) -> 0.9634080755 | AC103: =GEOMEAN(R103:R106)/GEOMEAN(J103:J106) -> 1.00120581 | AD103: =GEOMEAN(S103:S106)/GEOMEAN(K103:K106) -> 1.000015115
D104: 30 | E104: 878.176 | I104: 30011.94 | J104: 41.37 | K104: 310.98 | M104: 881.0944 | Q104: 28882.59 | R104: 41.68 | S104: 314.48
D105: 35 | E105: 481.4944 | I105: 27437.95 | J105: 39.42 | K105: 309.12 | M105: 482.4288 | Q105: 26327.56 | R105: 39.31 | S105: 309.22
D106: 40 | E106: 283.908 | I106: 25243.88 | J106: 37.01 | K106: 311.19 | M106: 284.3632 | Q106: 24443.5 | R106: 36.65 | S106: 308.76
A107: 1024x768 | B107: Newspaper_CC | C107: video 0 | D107: 25 | E107: 950.9072 | F107: 41.3531 | G107: 44.1238 | H107: 44.1783 | M107: 950.9072 | N107: 41.3531 | O107: 44.1238 | P107: 44.1783 | U107: =bdrate($E107:$E110,F107:F110,$M107:$M110,N107:N110) -> 0 | V107: =bdrate($E107:$E110,G107:G110,$M107:$M110,O107:O110) -> 0 | W107: =bdrate($E107:$E110,H107:H110,$M107:$M110,P107:P110) -> 0 | X107: =bdrateOld($E107:$E110,F107:F110,$M107:$M110,N107:N110) -> 0 | Y107: =bdrateOld($E107:$E110,G107:G110,$M107:$M110,O107:O110) -> 0 | Z107: =bdrateOld($E107:$E110,H107:H110,$M107:$M110,P107:P110) -> 0
D108: 30 | E108: 500.4008 | F108: 39.001 | G108: 42.5175 | H108: 42.5105 | M108: 500.4008 | N108: 39.001 | O108: 42.5175 | P108: 42.5105
D109: 35 | E109: 276.0776 | F109: 36.4642 | G109: 40.7699 | H109: 40.7244 | M109: 276.0776 | N109: 36.4642 | O109: 40.7699 | P109: 40.7244
D110: 40 | E110: 160.528 | F110: 33.9062 | G110: 39.5632 | H110: 39.4551 | M110: 160.528 | N110: 33.9062 | O110: 39.5632 | P110: 39.4551
C111: video 1 | D111: 25 | E111: 324.68 | F111: 40.3093 | G111: 42.9634 | H111: 43.0763 | M111: 325.228 | N111: 40.3066 | O111: 42.9608 | P111: 43.0722 | U111: =bdrate($E111:$E114,F111:F114,$M111:$M114,N111:N114) -> 0.002606535961 | V111: =bdrate($E111:$E114,G111:G114,$M111:$M114,O111:O114) -> 0.002874674881 | W111: =bdrate($E111:$E114,H111:H114,$M111:$M114,P111:P114) -> 0.004633518207 | X111: =bdrateOld($E111:$E114,F111:F114,$M111:$M114,N111:N114) -> 0.002602191722 | Y111: =bdrateOld($E111:$E114,G111:G114,$M111:$M114,O111:O114) -> 0.002559766357 | Z111: =bdrateOld($E111:$E114,H111:H114,$M111:$M114,P111:P114) -> 0.004671211375
D112: 30 | E112: 143.7504 | F112: 37.9928 | G112: 41.4459 | H112: 41.5259 | M112: 144.0136 | N112: 37.9895 | O112: 41.4502 | P112: 41.5183
D113: 35 | E113: 73.656 | F113: 35.5915 | G113: 40.1585 | H113: 40.123 | M113: 73.7568 | N113: 35.5884 | O113: 40.1483 | P113: 40.1183
D114: 40 | E114: 41.9976 | F114: 33.1891 | G114: 39.185 | H114: 39.1174 | M114: 42.1024 | N114: 33.1864 | O114: 39.1814 | P114: 39.1148
C115: video 2 | D115: 25 | E115: 368.4504 | F115: 39.9078 | G115: 42.846 | H115: 42.7367 | M115: 369.5504 | N115: 39.9058 | O115: 42.8502 | P115: 42.7421 | U115: =bdrate($E115:$E118,F115:F118,$M115:$M118,N115:N118) -> 0.001980145182 | V115: =bdrate($E115:$E118,G115:G118,$M115:$M118,O115:O118) -> -0.0001423366232 | W115: =bdrate($E115:$E118,H115:H118,$M115:$M118,P115:P118) -> 0.001461721214 | X115: =bdrateOld($E115:$E118,F115:F118,$M115:$M118,N115:N118) -> 0.001970462193 | Y115: =bdrateOld($E115:$E118,G115:G118,$M115:$M118,O115:O118) -> -0.0005081052724 | Z115: =bdrateOld($E115:$E118,H115:H118,$M115:$M118,P115:P118) -> 0.001428445505
D116: 30 | E116: 165.0008 | F116: 37.5553 | G116: 41.4141 | H116: 41.1628 | M116: 165.3976 | N116: 37.5542 | O116: 41.425 | P116: 41.1657
D117: 35 | E117: 85.5696 | F117: 35.1199 | G117: 40.1553 | H117: 39.7759 | M117: 85.5856 | N117: 35.1163 | O117: 40.1473 | P117: 39.7717
D118: 40 | E118: 47.5528 | F118: 32.6179 | G118: 39.1722 | H118: 38.7466 | M118: 47.5888 | N118: 32.6175 | O118: 39.1771 | P118: 38.7433
C119: depth 0 | D119: 34 | E119: 182.5368 | F119: 35.9269 | M119: 182.5368 | N119: 35.9269 | U119: =bdrate($E119:$E122,F119:F122,$M119:$M122,N119:N122) -> 0 | X119: =bdrateOld($E119:$E122,F119:F122,$M119:$M122,N119:N122) -> 0
D120: 39 | E120: 66.1008 | F120: 32.8385 | M120: 66.1008 | N120: 32.8385
D121: 42 | E121: 29.1112 | F121: 30.094 | M121: 29.1112 | N121: 30.094
D122: 45 | E122: 14.4104 | F122: 27.4602 | M122: 14.4104 | N122: 27.4602
C123: depth 1 | D123: 34 | E123: 122.624 | F123: 35.6574 | M123: 124.3592 | N123: 35.6702 | U123: =bdrate($E123:$E126,F123:F126,$M123:$M126,N123:N126) -> 0.04005983529 | X123: =bdrateOld($E123:$E126,F123:F126,$M123:$M126,N123:N126) -> 0.04033840446
D124: 39 | E124: 45.9496 | F124: 32.2803 | M124: 46.664 | N124: 32.1904
D125: 42 | E125: 20.9256 | F125: 29.684 | M125: 21.4616 | N125: 29.6027
D126: 45 | E126: 9.9136 | F126: 26.8802 | M126: 9.9904 | N126: 26.7492
C127: depth 2 | D127: 34 | E127: 108.4144 | F127: 35.2572 | M127: 110.4328 | N127: 35.145 | U127: =bdrate($E127:$E130,F127:F130,$M127:$M130,N127:N130) -> 0.02914742935 | X127: =bdrateOld($E127:$E130,F127:F130,$M127:$M130,N127:N130) -> 0.02871593442
D128: 39 | E128: 38.1864 | F128: 32.3573 | M128: 39.0352 | N128: 32.4141
D129: 42 | E129: 17.4312 | F129: 29.5761 | M129: 17.8104 | N129: 29.4971
D130: 45 | E130: 8.8768 | F130: 27.3825 | M130: 9.016 | N130: 27.3365
C131: syn 0.25 | D131: 25 | F131: 39.9102 | G131: 45.2669 | H131: 45.4272 | N131: 39.9009 | O131: 45.2647 | P131: 45.4291
D132: 30 | F132: 37.8027 | G132: 43.5915 | H132: 43.68 | N132: 37.8064 | O132: 43.5935 | P132: 43.6789
D133: 35 | F133: 35.5277 | G133: 41.9794 | H133: 41.9393 | N133: 35.5221 | O133: 41.9769 | P133: 41.9354
D134: 40 | F134: 33.1687 | G134: 40.6982 | H134: 40.6619 | N134: 33.1496 | O134: 40.6943 | P134: 40.6615
C135: syn 0.50 | D135: 25 | F135: 40.4081 | G135: 46.1045 | H135: 46.1416 | N135: 40.4168 | O135: 46.11 | P135: 46.1418
D136: 30 | F136: 38.1738 | G136: 44.3123 | H136: 44.2541 | N136: 38.1677 | O136: 44.3151 | P136: 44.254
D137: 35 | F137: 35.7815 | G137: 42.4617 | H137: 42.2821 | N137: 35.779 | O137: 42.4604 | P137: 42.2817
D138: 40 | F138: 33.3119 | G138: 41.0148 | H138: 40.8555 | N138: 33.2725 | O138: 41.0104 | P138: 40.8501
C139: syn 0.75 | D139: 25 | F139: 40.8924 | G139: 45.9864 | H139: 46.0624 | N139: 40.8927 | O139: 45.9892 | P139: 46.0617
D140: 30 | F140: 38.6245 | G140: 44.2471 | H140: 44.2112 | N140: 38.621 | O140: 44.2462 | P140: 44.2112
D141: 35 | F141: 36.1793 | G141: 42.3136 | H141: 42.2 | N141: 36.1742 | O141: 42.3145 | P141: 42.1938
D142: 40 | F142: 33.6765 | G142: 40.8687 | H142: 40.7542 | N142: 33.6183 | O142: 40.8668 | P142: 40.7479
C143: syn 1.25 | D143: 25 | F143: 40.827 | G143: 45.8522 | H143: 45.9141 | N143: 40.837 | O143: 45.8478 | P143: 45.9148
D144: 30 | F144: 38.5564 | G144: 44.0698 | H144: 44.0369 | N144: 38.5639 | O144: 44.0699 | P144: 44.0392
D145: 35 | F145: 36.1237 | G145: 42.1604 | H145: 42.0057 | N145: 36.1196 | O145: 42.1578 | P145: 42.0084
D146: 40 | F146: 33.5909 | G146: 40.7435 | H146: 40.5479 | N146: 33.59 | O146: 40.7504 | P146: 40.5499
C147: syn 1.5 | D147: 25 | F147: 40.2033 | G147: 45.8827 | H147: 45.8642 | N147: 40.2089 | O147: 45.8783 | P147: 45.8646
D148: 30 | F148: 37.928 | G148: 44.0929 | H148: 43.9056 | N148: 37.9411 | O148: 44.098 | P148: 43.9149
D149: 35 | F149: 35.5515 | G149: 42.2549 | H149: 41.9322 | N149: 35.5482 | O149: 42.2562 | P149: 41.9318
D150: 40 | F150: 33.0532 | G150: 40.8568 | H150: 40.5186 | N150: 33.054 | O150: 40.8612 | P150: 40.5137
C151: syn 1.75 | D151: 25 | F151: 39.918 | G151: 45.0675 | H151: 45.0466 | N151: 39.918 | O151: 45.0658 | P151: 45.0467
D152: 30 | F152: 37.6172 | G152: 43.4194 | H152: 43.1932 | N152: 37.6157 | O152: 43.4255 | P152: 43.2069
D153: 35 | F153: 35.2131 | G153: 41.8231 | H153: 41.4263 | N153: 35.2057 | O153: 41.8178 | P153: 41.4232
D154: 40 | F154: 32.7112 | G154: 40.586 | H154: 40.147 | N154: 32.7113 | O154: 40.5922 | P154: 40.1439
C155: overall | D155: 25 | E155: 2065.5856 | I155: 27724.18 | J155: 40.5 | K155: 312.41 | M155: 2070.9872 | Q155: 27128.25 | R155: 40.18 | S155: 311.06 | AB155: =GEOMEAN(Q155:Q158)/GEOMEAN(I155:I158) -> 0.9799368719 | AC155: =GEOMEAN(R155:R158)/GEOMEAN(J155:J158) -> 0.9943720975 | AD155: =GEOMEAN(S155:S158)/GEOMEAN(K155:K158) -> 1.000757058
D156: 30 | E156: 967.3616 | I156: 24609.71 | J156: 37.25 | K156: 312.59 | M156: 969.5848 | Q156: 24145.6 | R156: 37.04 | S156: 311.54
D157: 35 | E157: 510.744 | I157: 23274.07 | J157: 35.43 | K157: 312.31 | M157: 511.776 | Q157: 22885.59 | R157: 35.4 | S157: 312.97
D158: 40 | E158: 291.252 | I158: 22382.78 | J158: 34.53 | K158: 309.88 | M158: 291.6088 | Q158: 21863.62 | R158: 34.25 | S158: 312.56
A159: 1920x1088 | B159: GT_Fly | C159: video 0 | D159: 25 | E159: 3667.8904 | F159: 40.1921 | G159: 45.4093 | H159: 46.2425 | M159: 3667.8904 | N159: 40.1921 | O159: 45.4093 | P159: 46.2425 | U159: =bdrate($E159:$E162,F159:F162,$M159:$M162,N159:N162) -> 0 | V159: =bdrate($E159:$E162,G159:G162,$M159:$M162,O159:O162) -> 0 | W159: =bdrate($E159:$E162,H159:H162,$M159:$M162,P159:P162) -> 0 | X159: =bdrateOld($E159:$E162,F159:F162,$M159:$M162,N159:N162) -> 0 | Y159: =bdrateOld($E159:$E162,G159:G162,$M159:$M162,O159:O162) -> 0 | Z159: =bdrateOld($E159:$E162,H159:H162,$M159:$M162,P159:P162) -> 0
D160: 30 | E160: 1611.2072 | F160: 37.7834 | G160: 43.5752 | H160: 44.3907 | M160: 1611.2072 | N160: 37.7834 | O160: 43.5752 | P160: 44.3907
D161: 35 | E161: 755.392 | F161: 35.5982 | G161: 41.7591 | H161: 42.5848 | M161: 755.392 | N161: 35.5982 | O161: 41.7591 | P161: 42.5848
D162: 40 | E162: 366.292 | F162: 33.4626 | G162: 40.6208 | H162: 41.4443 | M162: 366.292 | N162: 33.4626 | O162: 40.6208 | P162: 41.4443
C163: video 1 | D163: 25 | E163: 565.7392 | F163: 39.6955 | G163: 45.3068 | H163: 46.1441 | M163: 565.7968 | N163: 39.6955 | O163: 45.3066 | P163: 46.1441 | U163: =bdrate($E163:$E166,F163:F166,$M163:$M166,N163:N166) -> 2.391412552e-05 | V163: =bdrate($E163:$E166,G163:G166,$M163:$M166,O163:O166) -> -2.71835559e-05 | W163: =bdrate($E163:$E166,H163:H166,$M163:$M166,P163:P166) -> -2.218553851e-06 | X163: =bdrateOld($E163:$E166,F163:F166,$M163:$M166,N163:N166) -> 2.156447593e-05 | Y163: =bdrateOld($E163:$E166,G163:G166,$M163:$M166,O163:O166) -> -3.200750979e-05 | Z163: =bdrateOld($E163:$E166,H163:H166,$M163:$M166,P163:P166) -> -1.051924636e-05
D164: 30 | E164: 214.3448 | F164: 37.4439 | G164: 43.5362 | H164: 44.3567 | M164: 214.3352 | N164: 37.4439 | O164: 43.5365 | P164: 44.3568
D165: 35 | E165: 99.1064 | F165: 35.3724 | G165: 41.7721 | H165: 42.5981 | M165: 99.1168 | N165: 35.3724 | O165: 41.7721 | P165: 42.5981
D166: 40 | E166: 49.02 | F166: 33.3159 | G166: 40.6491 | H166: 41.476 | M166: 49.0144 | N166: 33.3158 | O166: 40.6491 | P166: 41.476
C167: video 2 | D167: 25 | E167: 584.9552 | F167: 39.659 | G167: 45.2677 | H167: 46.1127 | M167: 585.0504 | N167: 39.6591 | O167: 45.2677 | P167: 46.1126 | U167: =bdrate($E167:$E170,F167:F170,$M167:$M170,N167:N170) -> -5.502683199e-05 | V167: =bdrate($E167:$E170,G167:G170,$M167:$M170,O167:O170) -> 8.491564039e-05 | W167: =bdrate($E167:$E170,H167:H170,$M167:$M170,P167:P170) -> 5.349735832e-05 | X167: =bdrateOld($E167:$E170,F167:F170,$M167:$M170,N167:N170) -> -4.905173802e-05 | Y167: =bdrateOld($E167:$E170,G167:G170,$M167:$M170,O167:O170) -> 9.827996261e-05 | Z167: =bdrateOld($E167:$E170,H167:H170,$M167:$M170,P167:P170) -> 6.266263753e-05
D168: 30 | E168: 223.5136 | F168: 37.4012 | G168: 43.4958 | H168: 44.322 | M168: 223.5704 | N168: 37.4013 | O168: 43.4955 | P168: 44.322
D169: 35 | E169: 103.9888 | F169: 35.3256 | G169: 41.7265 | H169: 42.5572 | M169: 103.9568 | N169: 35.3258 | O169: 41.7265 | P169: 42.557
D170: 40 | E170: 51.896 | F170: 33.2573 | G170: 40.5982 | H170: 41.4319 | M170: 51.8864 | N170: 33.2572 | O170: 40.5982 | P170: 41.4321
C171: depth 0 | D171: 34 | E171: 271.2512 | F171: 38.171 | M171: 271.2512 | N171: 38.171 | U171: =bdrate($E171:$E174,F171:F174,$M171:$M174,N171:N174) -> 0 | X171: =bdrateOld($E171:$E174,F171:F174,$M171:$M174,N171:N174) -> 0
D172: 39 | E172: 101.6904 | F172: 34.4387 | M172: 101.6904 | N172: 34.4387
D173: 42 | E173: 45.1472 | F173: 31.2698 | M173: 45.1472 | N173: 31.2698
D174: 45 | E174: 20.3888 | F174: 28.305 | M174: 20.3888 | N174: 28.305
C175: depth 1 | D175: 34 | E175: 97 | F175: 38.4999 | M175: 97.0192 | N175: 38.5195 | U175: =bdrate($E175:$E178,F175:F178,$M175:$M178,N175:N178) -> -0.003756933248 | X175: =bdrateOld($E175:$E178,F175:F178,$M175:$M178,N175:N178) -> -0.003916439707
D176: 39 | E176: 32.7912 | F176: 35.1194 | M176: 32.9096 | N176: 35.1181
D177: 42 | E177: 15.8976 | F177: 31.8241 | M177: 15.7832 | N177: 31.8178
D178: 45 | E178: 8.6264 | F178: 28.4297 | M178: 8.5408 | N178: 28.4734
C179: depth 2 | D179: 34 | E179: 100.392 | F179: 38.4783 | M179: 100.6856 | N179: 38.4593 | U179: =bdrate($E179:$E182,F179:F182,$M179:$M182,N179:N182) -> 0.001687013696 | X179: =bdrateOld($E179:$E182,F179:F182,$M179:$M182,N179:N182) -> 0.001725736892
D180: 39 | E180: 34.3856 | F180: 35.0588 | M180: 34.5152 | N180: 35.0516
D181: 42 | E181: 16.3128 | F181: 31.5447 | M181: 16.3664 | N181: 31.5657
D182: 45 | E182: 8.7432 | F182: 28.2077 | M182: 8.68 | N182: 28.2305
C183: syn 0.25 | D183: 25 | F183: 39.6623 | G183: 46.3921 | H183: 46.4783 | N183: 39.6633 | O183: 46.3933 | P183: 46.4755
D184: 30 | F184: 37.501 | G184: 44.5856 | H184: 45.0056 | N184: 37.5008 | O184: 44.5842 | P184: 45.0023
D185: 35 | F185: 35.4488 | G185: 42.5953 | H185: 43.3552 | N185: 35.4482 | O185: 42.5958 | P185: 43.3547
D186: 40 | F186: 33.3923 | G186: 41.3896 | H186: 42.1436 | N186: 33.3912 | O186: 41.3884 | P186: 42.1434
C187: syn 0.50 | D187: 25 | F187: 39.857 | G187: 46.2415 | H187: 46.7017 | N187: 39.8564 | O187: 46.2418 | P187: 46.6988
D188: 30 | F188: 37.6425 | G188: 44.5407 | H188: 45.1166 | N188: 37.6412 | O188: 44.5399 | P188: 45.1159
D189: 35 | F189: 35.5361 | G189: 42.7089 | H189: 43.3592 | N189: 35.5355 | O189: 42.7073 | P189: 43.3569
D190: 40 | F190: 33.4314 | G190: 41.4705 | H190: 42.2097 | N190: 33.4297 | O190: 41.4703 | P190: 42.2092
C191: syn 0.75 | D191: 25 | F191: 40.0998 | G191: 46.8836 | H191: 47.7165 | N191: 40.0995 | O191: 46.8832 | P191: 47.7162
D192: 30 | F192: 37.7661 | G192: 44.9699 | H192: 45.7693 | N192: 37.7655 | O192: 44.9698 | P192: 45.7693
D193: 35 | F193: 35.6073 | G193: 42.9837 | H193: 43.7669 | N193: 35.6075 | O193: 42.9837 | P193: 43.7668
D194: 40 | F194: 33.4837 | G194: 41.6964 | H194: 42.4968 | N194: 33.4832 | O194: 41.6965 | P194: 42.4968
C195: syn 1.25 | D195: 25 | F195: 40.0756 | G195: 46.8836 | H195: 47.7119 | N195: 40.0736 | O195: 46.8831 | P195: 47.7112
D196: 30 | F196: 37.7459 | G196: 44.9706 | H196: 45.7597 | N196: 37.7448 | O196: 44.97 | P196: 45.7592
D197: 35 | F197: 35.5948 | G197: 42.9772 | H197: 43.7541 | N197: 35.5947 | O197: 42.9769 | P197: 43.7541
D198: 40 | F198: 33.4729 | G198: 41.6804 | H198: 42.4749 | N198: 33.473 | O198: 41.6803 | P198: 42.4748
C199: syn 1.5 | D199: 25 | F199: 39.8296 | G199: 46.2036 | H199: 46.8634 | N199: 39.8272 | O199: 46.2023 | P199: 46.8635
D200: 30 | F200: 37.6168 | G200: 44.5434 | H200: 45.1683 | N200: 37.6152 | O200: 44.544 | P200: 45.1694
... 343 more rows
